bitfinex/quotes_ETHUSD_20260131
["timestamp","ask_amount","ask_price","bid_price","bid_amount"]
[1769885039034,2.26170907,2259.0,2250.7,13.0839889]
[1769885039236,7.90918183,2258.6,2250.7,13.0839889]
[1769885039564,8.59703129,2258.9,2250.2,1.11101087]
[1769885039565,8.035555,2259.0,2250.9,13.0839889]
[1769885039853,14.96887664,2257.4,2251.0,1.3393053]
[1769885040031,13.95843716,2255.0,2250.0,43.10527015]
[1769885040211,13.95843716,2250.7,2235.8,1.59]
[1769885040410,1.71908968,2254.9,2245.1,1.11353614]
[1769885040411,0.3574756,2251.5,2245.1,1.11353614]
[1769885040718,7.90918183,2249.4,2245.2,0.52974911]
[1769885040918,13.95843716,2249.4,2238.7,13.0839889]
[1769885041120,0.4643159,2249.3,2244.9,4.25314458]
[1769885041323,1.10782112,2256.7,2245.1,13.99652504]
[1769885041536,0.4215908,2253.4,2248.3,12.10884926]
[1769885041738,1.0,2254.1,2247.5,13.0839889]
[1769885041937,0.33391582,2256.5,2248.7,13.0839889]
[1769885042158,7.90918183,2257.4,2248.4,0.40172831]
[1769885042159,1.10688183,2258.6,2248.5,1.11185086]
[1769885042322,0.39250815,2260.3,2248.8,1.02880342]
[1769885042527,1.10373716,2265.1,2259.3,7.89349764]
[1769885042732,2.52946778,2265.1,2258.6,1.03618397]
[1769885042926,2.52946778,2265.1,2250.3,0.39346]
[1769885042927,0.3416191,2265.0,2259.7,7.89349764]
[1769885043128,4.41494866,2265.3,2256.2,1.593]
[1769885043369,2.29747959,2269.5,2259.8,0.41674517]
[1769885043657,11.30663232,2266.1,2260.9,7.89349764]
[1769885043812,11.30663232,2266.1,2259.8,0.41674517]
[1769885043813,0.28465011,2266.8,2262.7,7.89349764]
[1769885044012,7.89349764,2271.2,2259.5,51.3029]
[1769885044013,11.30663232,2266.7,2260.0,0.45072493]
[1769885044230,14.0,2268.5,2262.2,7.89349764]
[1769885044440,14.0,2268.5,2260.2,4.409]
[1769885044441,11.30663232,2268.4,2260.2,4.409]
[1769885044658,14.0,2268.5,2266.5,7.89349764]
[1769885044941,14.0,2268.5,2262.9,83.103]
[1769885044942,0.38534292,2269.1,2263.0,8.66649523]
[1769885045164,1.10103395,2270.6,2263.0,8.66649523]
[1769885045460,7.86464924,2272.8,2262.9,82.34238489]
[1769885045461,2.21829414,2275.6,2272.5,0.95513228]
[1769885045624,0.43520864,2272.8,2265.2,42.8259]
[1769885045813,0.02376,2275.6,2265.2,42.8259]
[1769885045814,0.67259812,2270.7,2265.3,0.48207107]
[1769885046018,0.02376,2272.8,2265.4,4.71582214]
[1769885046264,0.04425856,2273.3,2272.7,7.81822425]
[1769885046423,0.95417049,2271.1,2268.2,0.00312]
[1769885046781,1e-08,2271.4,2271.0,7.57132028]
[1769885047047,0.04425856,2273.0,2271.3,7.22792451]
[1769885047223,0.04425856,2273.0,2266.5,0.00312]
[1769885047224,0.04846562,2269.8,2267.5,0.32313483]
[1769885047422,12.5246,2297.9,2270.4,0.04846562]
[1769885047423,0.04846562,2272.3,2270.4,0.04846562]
[1769885047621,0.04846562,2276.2,2272.4,0.0484656]
[1769885047822,0.04846562,2276.8,2276.1,8.02667992]
[1769885047823,0.55908259,2276.7,2276.1,8.02667992]
[1769885048029,0.5554719,2279.0,2276.6,7.5289754]
[1769885048239,4.53540588,2285.2,2274.6,1.591]
[1769885048423,0.35394491,2285.2,2283.2,4.63622425]
[1769885048617,0.03969464,2283.3,2276.8,4.375]
[1769885048820,0.05280993,2278.5,2274.5,0.05280993]
[1769885049025,0.05280993,2278.5,2275.9,0.05280993]
[1769885049026,14.0,2278.5,2275.9,0.05280993]
[1769885049259,14.0,2278.5,2274.4,0.05280993]
[1769885049260,15.23952108,2278.5,2277.9,0.05710521]
[1769885049558,0.22587653,2279.8,2279.1,0.05710521]
[1769885049559,0.54248841,2279.5,2279.1,0.05710521]
[1769885049724,0.22587653,2279.8,2278.4,0.05710521]
[1769885049725,0.47102735,2279.1,2278.8,0.05710521]
[1769885049924,0.22587653,2279.8,2278.5,0.05364521]
[1769885050139,2.16225048,2282.9,2277.7,0.05710521]
[1769885050140,0.05710521,2280.5,2277.7,1.09759845]
[1769885050339,0.0208,2281.9,2277.7,1.09409845]
[1769885050340,0.05710521,2278.6,2277.7,1.09409845]
[1769885050636,0.82186175,2280.7,2279.7,0.03510222]
[1769885050822,0.05710521,2277.5,2276.0,4.378]
[1769885051025,0.05710521,2277.9,2275.8,1.0985148]
[1769885051026,0.05710521,2278.3,2278.0,0.34263126]
[1769885051326,0.06588628,2280.1,2275.8,1.0985148]
[1769885051529,0.06588628,2279.3,2278.1,0.17572106]
[1769885051730,0.06588628,2278.5,2275.8,1.0985148]
[1769885051931,0.06588628,2278.5,2274.8,0.5631162]
[1769885051932,0.06588628,2278.3,2275.9,0.94436023]
[1769885052134,0.07026481,2275.0,2273.9,0.27366519]
[1769885052358,0.07026481,2274.3,2274.0,4.4954893]
[1769885052649,0.07026481,2274.3,2268.7,0.0824617]
[1769885052650,0.07026481,2271.6,2268.7,0.0824617]
[1769885052821,1.791e-05,2274.1,2268.7,0.0824617]
[1769885052822,0.07026481,2268.9,2268.8,20.84030384]
[1769885053026,0.07026481,2268.9,2260.7,0.07026481]
[1769885053331,0.07026481,2268.9,2259.5,0.07026481]
[1769885053332,13.10856173,2280.0,2269.6,0.71244906]
[1769885053532,13.10856173,2280.0,2263.9,1.18667125]
[1769885053533,0.07492783,2263.7,2260.8,0.47123652]
[1769885053744,0.56146425,2276.9,2265.2,0.01264471]
[1769885053932,13.09591702,2277.0,2261.0,0.24276302]
[1769885053933,0.07492783,2261.1,2261.0,0.24276302]
[1769885054269,14.60455317,2276.7,2261.0,25.62738019]
[1769885054425,0.09720964,2259.3,2246.5,0.09720964]
[1769885054630,0.09720964,2259.6,2246.5,0.09720964]
[1769885054631,14.0,2276.5,2268.2,30.0]
[1769885054828,0.22367688,2276.9,2268.3,6.34757733]
[1769885054829,1.53107146,2276.4,2268.3,6.34757733]
[1769885055127,2.2848949,2278.3,2261.1,1.32095161]
[1769885055128,0.22365763,2277.8,2268.5,12.55780091]
[1769885055330,4.38378714,2281.2,2268.7,12.97954799]
[1769885055551,2.20729764,2281.4,2268.9,12.97954799]
[1769885055552,4.3836557,2281.3,2268.9,12.97954799]
[1769885055756,4.3836557,2281.3,2268.8,6.58172031]
[1769885055757,1.16162797,2279.8,2270.5,12.33414328]
[1769885055979,0.50095045,2279.7,2270.9,12.33414328]
[1769885056127,0.3130367,2279.7,2271.6,2.13651935]
[1769885056328,0.1649234,2279.7,2274.4,2.16388006]
[1769885056559,0.1649234,2279.7,2272.2,2.12684103]
[1769885056727,0.1649234,2279.7,2273.1,2.1182616]
[1769885056933,13.87080439,2279.6,2273.1,2.1182616]
[1769885057233,13.87080439,2279.6,2271.2,1.10073969]
[1769885057234,14.03572779,2279.6,2271.3,2.10563566]
[1769885057445,13.10856173,2279.4,2271.3,2.10563566]
[1769885057749,0.92716606,2279.6,2271.5,2.16001618]
[1769885057750,1.03477236,2279.3,2271.5,2.16001618]
[1769885057954,0.34808366,2279.3,2271.6,0.60852823]
[1769885058180,13.10856173,2279.1,2271.6,1.10054587]
[1769885058340,13.10856173,2279.1,2271.8,2.12496593]
[1769885058531,13.10856173,2278.9,2271.7,2.18100254]
[1769885058725,0.88337926,2278.8,2271.6,31.10054587]
[1769885059054,0.28089314,2278.7,2271.9,14.50882467]
[1769885059359,0.28089314,2278.7,2271.7,0.92824232]
[1769885059360,0.1649234,2278.7,2272.1,14.43643903]
[1769885059570,0.1649234,2278.7,2272.1,14.96870576]
[1769885059769,1.585,2280.5,2274.0,14.46774045]
[1769885059927,0.0208,2281.9,2274.7,12.01558251]
[1769885059928,0.22359601,2281.3,2274.7,12.01558251]
[1769885060130,27.568,2283.6,2275.8,12.68117989]
[1769885060348,0.0824617,2285.3,2275.7,1.09856307]
[1769885060349,0.0824617,2285.3,2283.4,0.2232847]
[1769885060553,0.0824617,2285.3,2283.4,0.44678675]
[1769885060554,1.09399614,2285.2,2283.4,0.44678675]
[1769885060767,1.0079906,2285.2,2281.2,1.31643903]
[1769885060928,1.0079906,2285.2,2281.2,3.29137863]
[1769885061127,0.33595555,2286.0,2276.6,0.00314]
[1769885061128,1.09214945,2289.1,2280.8,2.11000931]
[1769885061331,0.44374598,2287.3,2281.4,2.18781811]
[1769885061562,1.585,2289.2,2281.6,2.16173125]
[1769885061764,0.30581685,2290.1,2281.7,0.43388334]
[1769885061931,0.0824617,2290.1,2281.8,2.15103579]
[1769885062269,0.0824617,2290.1,2282.2,2.10992929]
[1769885062437,0.0824617,2290.1,2282.4,2.13482891]
[1769885062641,0.22326292,2293.6,2287.9,2.15295106]
[1769885062965,0.0824617,2294.9,2288.0,2.81164909]
[1769885062966,1.17186685,2294.9,2288.0,2.81164909]
[1769885063133,0.0824617,2294.9,2288.1,2.10922911]
[1769885063333,0.0824617,2294.9,2288.3,2.10915183]
[1769885063541,14.0,2294.8,2288.5,2.13371901]
[1769885063749,14.0,2294.8,2268.5,0.13185074]
[1769885063750,14.0,2294.8,2288.9,2.19619297]
[1769885063950,14.0,2294.8,2288.9,2.56786197]
[1769885064160,0.0824617,2294.9,2289.0,1.09217999]
[1769885064480,0.0824617,2294.9,2289.1,2.66117279]
[1769885064631,0.0824617,2294.9,2289.1,3.53562978]
[1769885064832,1.1366774,2300.3,2295.0,2.24932507]
[1769885065031,14.0,2302.6,2297.0,0.22315408]
[1769885065032,1e-08,2299.6,2297.0,0.22315408]
[1769885065564,1e-08,2299.6,2297.1,2.12082227]
[1769885065731,1e-08,2299.6,2297.0,0.22315408]
[1769885065732,1e-08,2299.6,2297.6,32.19731166]
[1769885065931,1e-08,2299.6,2297.2,0.56178837]
[1769885066176,1e-08,2299.6,2297.1,1.08832876]
[1769885066344,1e-08,2299.6,2297.4,2.17515351]
[1769885066660,1e-08,2299.6,2297.5,0.1024]
[1769885066963,1e-08,2299.6,2297.1,1.07350975]
[1769885067175,1.58,2303.5,2297.2,2.1199156]
[1769885067472,1.578,2306.6,2297.4,2.16373507]
[1769885067668,1.578,2306.6,2297.6,2.17567834]
[1769885067961,14.0,2304.3,2297.7,0.8784433]
[1769885068160,14.0,2304.3,2297.8,2.10203884]
[1769885068358,4.33433291,2307.2,2297.8,2.10203884]
[1769885068359,14.0,2306.4,2298.2,2.13977979]
[1769885068601,14.0,2306.4,2298.4,2.11235654]
[1769885068756,1.576,2306.2,2300.8,2.14818678]
[1769885069081,1.576,2306.2,2301.1,2.15395972]
[1769885069082,14.0,2306.1,2301.1,2.15395972]
[1769885069270,0.43106667,2306.7,2301.0,2.29674448]
[1769885069471,0.37948248,2306.9,2301.0,2.29674448]
[1769885069472,14.0,2308.0,2301.5,2.15885085]
[1769885069782,0.001,2308.6,2302.6,0.18432]
[1769885069964,0.001,2308.6,2302.7,4.59496474]
[1769885070289,14.0,2312.2,2302.7,4.59496474]
[1769885070290,1e-08,2309.2,2303.3,2.10670089]
[1769885070464,1e-08,2309.2,2303.5,2.1630523]
[1769885070659,14.0,2312.2,2304.4,2.1595599]
[1769885070660,13.799,2312.2,2304.4,2.1595599]
[1769885070888,13.799,2312.2,2304.8,2.15133986]
[1769885071094,13.8995,2312.0,2305.0,2.13160946]
[1769885071299,0.40931991,2311.9,2305.0,2.13160946]
[1769885071601,13.8995,2311.8,2305.2,2.13841147]
[1769885071754,14.43844025,2311.8,2305.4,2.18493551]
[1769885071958,13.8995,2311.8,2305.6,2.11636045]
[1769885072285,0.50086931,2311.7,2305.8,2.15179995]
[1769885072504,12.19535578,2314.2,2306.0,2.17404565]
[1769885072666,12.19535578,2314.2,2307.6,30.0]
[1769885072985,1.571,2315.5,2307.8,2.13412704]
[1769885073198,1.571,2317.6,2308.4,2.16058348]
[1769885073368,1.571,2317.6,2308.6,4.02022336]
[1769885073566,0.44493124,2317.5,2309.0,4.07781995]
[1769885073782,14.67956173,2317.4,2311.6,2.16044834]
[1769885073956,13.10856173,2317.2,2310.9,2.15779588]
[1769885074164,13.10856173,2317.0,2309.4,2.17421274]
[1769885074486,0.44493124,2317.1,2311.0,1.29788099]
[1769885074487,13.10856173,2316.9,2311.0,1.29788099]
[1769885074664,13.10856173,2316.9,2309.3,1.08257913]
[1769885074665,15.58456613,2316.9,2311.3,2.11636427]
[1769885074990,0.0824617,2318.7,2312.1,2.09901776]
[1769885074991,0.38641665,2317.9,2312.1,2.09901776]
[1769885075204,1.569,2320.0,2312.7,2.17357798]
[1769885075205,1e-08,2319.0,2312.7,2.17357798]
[1769885075359,1e-08,2319.0,2313.4,4.00642948]
[1769885075559,1e-08,2319.0,2314.5,2.12191333]
[1769885075770,1e-08,2319.0,2314.4,0.1024]
[1769885075771,1.07621264,2323.0,2314.8,2.46557718]
[1769885075975,0.39894148,2320.9,2314.9,0.42845053]
[1769885076174,0.39894148,2320.9,2315.4,2.1877307]
[1769885076175,1.567,2320.9,2315.4,2.1877307]
[1769885076395,0.4591378,2320.8,2315.6,2.12465366]
[1769885076580,0.4591378,2320.8,2315.8,2.19647953]
[1769885076892,13.10856173,2320.7,2316.0,0.1024]
[1769885077069,0.4591378,2320.6,2316.0,0.1024]
[1769885077272,1.07628723,2322.8,2316.0,0.1024]
[1769885077273,13.41443615,2322.8,2316.2,0.28672]
[1769885077582,0.00729032,2350.7,2316.3,2.5642596]
[1769885077583,1.566,2322.7,2316.3,2.5642596]
[1769885077771,0.39028471,2322.9,2316.4,2.12044254]
[1769885078100,0.39028471,2322.6,2316.6,2.16880106]
[1769885078286,0.39028471,2322.6,2316.5,10.0]
[1769885078287,14.49086241,2322.5,2316.5,1.07921433]
[1769885078593,14.49086241,2322.5,2316.4,4.31685732]
[1769885078594,15.4030542,2322.4,2316.4,4.31685732]
[1769885078796,13.8380542,2322.4,2316.5,2.19308636]
[1769885079104,0.42361805,2322.3,2316.6,2.94884607]
[1769885079264,13.41443615,2326.1,2317.4,1.92333309]
[1769885079467,13.41443615,2326.1,2317.7,2.39525337]
[1769885079666,1.564,2327.8,2317.5,3.26909866]
[1769885079667,0.44738997,2323.6,2317.6,2.14801424]
[1769885079895,0.47186112,2324.2,2319.4,2.15693584]
[1769885080094,13.41443615,2325.7,2322.8,0.13185074]
[1769885080298,4.29959583,2326.0,2323.8,0.13185074]
[1769885080299,0.39601993,2324.1,2323.8,0.13185074]
[1769885080470,0.47186112,2326.0,2323.8,0.13185074]
[1769885080668,0.38513385,2326.4,2324.0,0.13185074]
[1769885080669,0.47186112,2324.9,2324.0,0.13185074]
[1769885080896,1.07443699,2326.8,2326.6,0.13185074]
[1769885081091,1.07443699,2326.8,2324.3,0.13185074]
[1769885081092,1.07375587,2328.3,2327.1,0.13185074]
[1769885081403,0.13185074,2330.2,2328.7,0.13185074]
[1769885081404,14.35545469,2330.2,2328.7,0.13185074]
[1769885081577,14.35545469,2330.2,2323.4,0.13185074]
[1769885081578,0.13185074,2329.4,2326.2,0.13185074]
[1769885081776,0.13185074,2329.5,2326.0,0.13185074]
[1769885081777,14.89455768,2329.3,2326.4,0.33773733]
[1769885081988,14.89455768,2329.3,2326.0,0.13185074]
[1769885081989,0.60143881,2324.1,2321.2,2.66625074]
[1769885082168,0.28870564,2328.5,2325.0,1.0752663]
[1769885082372,0.28870564,2328.5,2324.8,4.30143268]
[1769885082373,1.07236305,2331.3,2329.7,0.13185074]
[1769885082603,0.33265628,2329.0,2327.8,0.13185074]
[1769885082814,0.33265628,2329.0,2328.3,0.13185074]
[1769885082815,0.18658684,2329.0,2328.3,0.13185074]
[1769885082978,0.18658684,2329.0,2323.1,0.00309]
[1769885082979,2.17564414,2328.2,2320.2,2.1338011]
[1769885083298,1.56,2328.1,2320.8,2.53440002]
[1769885083503,1.82792778,2328.0,2320.9,0.3994014]
[1769885083704,2.13172991,2326.9,2316.9,1.67747987]
[1769885083889,2.11568974,2326.3,2323.4,0.12550762]
[1769885084094,2.11568974,2326.3,2323.0,0.13185074]
[1769885084095,19.81804493,2326.2,2322.1,0.13185074]
[1769885084292,0.69798727,2318.8,2317.2,4.31554214]
[1769885084470,0.35350454,2322.7,2321.2,0.13185074]
[1769885084672,19.452,2322.6,2322.3,0.13185074]
[1769885084972,19.452,2322.6,2321.5,0.13185074]
[1769885084973,1.559,2323.6,2322.9,0.13185074]
[1769885085199,1.559,2323.6,2322.5,0.13185074]
[1769885085200,0.22,2320.9,2318.4,0.91024941]
[1769885085384,0.32664799,2326.4,2318.4,1.58103684]
[1769885085702,4.29591647,2328.0,2318.4,1.58103684]
[1769885085703,0.15839912,2325.8,2318.4,0.04040757]
[1769885085904,0.39555194,2325.2,2324.2,0.13185074]
[1769885086067,0.54862298,2325.1,2325.0,0.13185074]
[1769885086272,0.31837742,2323.1,2316.8,3.97258442]
[1769885086503,0.85611779,2324.3,2317.1,4.18435727]
[1769885086715,10.1863623,2325.1,2324.9,2e-08]
[1769885086897,1.558,2325.7,2317.9,0.02077]
[1769885086898,0.00116094,2324.9,2317.9,0.02077]
[1769885087070,2.16937121,2324.7,2316.8,1.07904096]
[1769885087271,2.16937121,2324.7,2316.7,4.31629834]
[1769885087272,2.17239013,2324.5,2314.1,13.99999413]
[1769885087471,2.1515706,2324.3,2315.0,0.0011]
[1769885087772,30.0,2320.4,2315.0,14.00109413]
[1769885087966,30.0,2320.4,2314.8,4.3198476]
[1769885087967,0.36517762,2320.3,2314.8,0.0011]
[1769885088197,0.36517762,2320.3,2311.2,15.55799413]
[1769885088198,4.31034482,2320.1,2311.2,19.18883967]
[1769885088484,0.2216,2313.5,2311.4,4.32634014]
[1769885088695,0.2216,2313.5,2311.3,1.08164236]
[1769885089074,15.0,2318.1,2311.3,15.08163649]
[1769885089768,15.0,2318.5,2311.3,15.08163649]
[1769885089977,4.31034482,2320.1,2311.7,16.19311556]
[1769885090174,0.0824617,2323.5,2311.9,16.14012755]
[1769885090376,0.0824617,2323.5,2321.4,13.99999413]
[1769885090801,0.0824617,2323.5,2321.3,0.22155016]
[1769885090802,0.0824617,2323.5,2321.5,14.41240225]
[1769885091106,2.14082941,2327.7,2321.5,14.41240225]
[1769885091107,1.07404879,2327.7,2322.1,13.99999413]
[1769885091293,4.29281466,2329.5,2323.6,14.08245583]
[1769885091602,4.29281466,2329.5,2321.6,2.9056661]
[1769885091603,4.29279112,2329.5,2323.9,13.99959413]
[1769885091806,0.0002,2327.8,2323.9,13.99959413]
[1769885092105,0.0002,2327.8,2324.1,13.99959413]
[1769885092407,0.0002,2327.8,2324.3,13.99959413]
[1769885092581,0.0016,2329.0,2324.5,13.99959413]
[1769885092783,0.0008,2329.0,2324.9,13.99959413]
[1769885093117,0.0008,2329.4,2325.8,13.99919413]
[1769885093287,0.0008,2329.4,2326.7,13.99919413]
[1769885093614,0.08599007,2332.2,2326.7,13.99919413]
[1769885093775,4.28761308,2332.4,2326.7,13.99919413]
[1769885093776,0.0008,2330.6,2326.7,13.99919413]
[1769885093976,0.0824617,2333.0,2326.7,13.99919413]
[1769885093977,0.0008,2331.8,2326.9,13.99919413]
[1769885094176,0.0008,2331.8,2326.8,1.39999941]
[1769885094177,0.0008,2331.8,2327.6,1.0740677]
[1769885094407,0.0008,2331.8,2328.5,13.99919413]
[1769885094608,0.16845177,2333.0,2327.7,0.37886167]
[1769885094609,0.08599007,2332.8,2331.5,13.91320406]
[1769885094777,0.0008,2333.8,2331.6,1.0286651]
[1769885094976,0.08599007,2335.0,2330.3,3.6852414]
[1769885094977,0.08599007,2332.9,2330.3,1.555]
[1769885095199,0.08599007,2333.7,2330.3,1.555]
[1769885095200,0.40023101,2334.8,2331.0,13.70560345]
[1769885095402,0.40023101,2335.6,2331.8,13.70560345]
[1769885095610,0.08599007,2337.3,2331.1,0.08599007]
[1769885095611,0.0824617,2337.7,2332.7,13.70560345]
[1769885095807,0.0824617,2337.7,2335.5,13.70520345]
[1769885095985,0.08599007,2340.4,2331.9,2.77253855]
[1769885095986,0.001,2340.6,2338.4,13.00167177]
[1769885096185,0.08599007,2344.1,2340.1,0.08599007]
[1769885096414,0.08599007,2346.6,2343.0,0.08599007]
[1769885096604,0.08599007,2346.9,2344.4,0.08599007]
[1769885096928,0.08599007,2346.9,2343.5,0.08599007]
[1769885096929,0.08599007,2346.5,2344.2,0.42613855]
[1769885097207,0.07674761,2344.6,2341.1,13.00167177]
[1769885097508,0.08599007,2345.6,2343.2,0.0008]
[1769885097509,0.07674761,2345.6,2343.2,0.0008]
[1769885097712,0.07674761,2346.1,2341.9,0.07674761]
[1769885097713,0.07674761,2344.8,2341.9,15.15264073]
[1769885097906,4.25731193,2349.2,2342.1,2.17017778]
[1769885097907,0.07674761,2347.1,2342.1,2.17017778]
[1769885098109,0.07674761,2347.3,2343.7,13.00167177]
[1769885098310,0.07674761,2346.4,2344.0,13.00167177]
[1769885098609,0.0824617,2352.0,2349.8,0.46048566]
[1769885098777,2.13903218,2355.9,2345.9,0.07674761]
[1769885098778,0.07674761,2353.5,2349.4,0.07674761]
[1769885098978,0.07674761,2353.5,2347.0,0.07674761]
[1769885098979,0.07674761,2353.3,2349.8,0.07674761]
[1769885099210,0.07674761,2353.8,2349.2,0.57696927]
[1769885099211,0.06804023,2354.3,2350.4,2.17288837]
[1769885099375,2.16914585,2361.1,2350.3,0.06804023]
[1769885099376,0.06804023,2354.0,2350.6,2.15924801]
[1769885099582,0.0008,2356.7,2354.1,0.06804023]
[1769885099807,0.0008,2356.7,2350.6,0.06804023]
[1769885099808,0.06804023,2355.2,2353.2,1.02151833]
[1769885099998,0.06804023,2355.3,2353.5,0.0008]
[1769885100176,0.05097273,2354.1,2353.5,0.0008]
[1769885100376,0.05097273,2355.4,2350.9,2.15656245]
[1769885100377,0.05097273,2354.4,2350.9,2.15656245]
[1769885100694,0.05097273,2354.8,2350.6,0.05097273]
[1769885100695,0.05097273,2355.2,2352.5,0.31409035]
[1769885100894,0.05097273,2355.2,2352.1,2.14953898]
[1769885100895,0.05097273,2354.1,2350.5,1.06360348]
[1769885101097,0.05097273,2352.0,2350.1,4.25441395]
[1769885101286,0.05097273,2352.0,2349.5,0.16991812]
[1769885101287,0.05097273,2351.1,2349.2,4.25669553]
[1769885101487,0.05097273,2352.5,2348.7,4.25757127]
[1769885101488,0.05097273,2355.6,2350.8,2.15656546]
[1769885101689,0.05097273,2355.6,2351.5,2.11991299]
[1769885101690,0.05097273,2355.2,2351.5,2.11991299]
[1769885101878,0.05097273,2355.2,2351.0,0.05097273]
[1769885101879,0.24114366,2355.5,2351.3,2.46456788]
[1769885102080,0.24114366,2355.5,2351.6,0.434304]
[1769885102081,0.05097273,2353.4,2351.6,0.434304]
[1769885102278,0.05097273,2353.4,2350.8,3.22003321]
[1769885102279,0.05097273,2353.2,2350.8,3.22003321]
[1769885102489,0.05097273,2354.4,2351.0,2.18797186]
[1769885102687,0.05097273,2354.4,2350.8,5.85957683]
[1769885102688,0.05097273,2354.4,2352.2,0.0008]
[1769885102916,13.04038227,2357.9,2352.2,0.0008]
[1769885102917,1.06080536,2356.7,2352.2,0.0008]
[1769885103080,0.04247276,2352.6,2352.2,0.0008]
[1769885103280,0.04247276,2351.4,2350.9,4.79610908]
[1769885103503,0.04247276,2351.8,2350.1,6.35883279]
[1769885103504,0.04247276,2353.2,2350.3,13.00167177]
[1769885103718,0.04247276,2353.2,2350.2,1.06373925]
[1769885103719,0.04247276,2352.2,2350.2,0.29269673]
[1769885104040,0.04247276,2352.2,2349.2,2.11338047]
[1769885104041,0.04247276,2348.9,2346.6,2.35867249]
[1769885104180,0.01702091,2349.6,2346.8,4.26107538]
[1769885104379,0.01702091,2350.1,2346.8,4.26107538]
[1769885104380,0.01702091,2348.5,2347.8,0.0008]
[1769885104682,0.50047395,2350.5,2346.8,4.26107538]
[1769885104683,0.01702091,2351.2,2348.5,0.01702091]
[1769885104902,0.01702091,2350.1,2348.5,0.01782091]
[1769885105108,0.01702091,2350.8,2348.5,0.01782091]
[1769885105109,0.02979611,2351.7,2348.5,0.0008]
[1769885105308,0.02979611,2352.3,2346.8,6.44153669]
[1769885105309,0.02979611,2349.6,2346.8,4.26107538]
[1769885105521,0.02979611,2348.8,2347.4,0.0008]
[1769885105777,0.02979611,2348.8,2346.8,4.26107538]
[1769885105778,0.02979611,2350.8,2348.8,0.02979611]
[1769885106025,0.02979611,2351.1,2347.7,0.0008]
[1769885106026,0.02979611,2347.9,2347.7,0.0008]
[1769885106211,0.02979611,2347.9,2346.6,4.26112152]
[1769885106212,0.52891806,2350.7,2344.6,0.17055823]
[1769885106512,0.52891806,2350.7,2345.0,1.06609808]
[1769885106513,0.03405487,2345.3,2345.0,1.06609808]
[1769885106811,0.03405487,2346.6,2345.0,1.06609808]
[1769885107119,0.0383599,2347.7,2345.7,0.0383599]
[1769885107328,0.0383599,2350.5,2345.0,1.06609808]
[1769885107329,0.0383599,2348.8,2345.0,1.06609808]
[1769885107491,0.0383599,2348.8,2344.0,0.0383599]
[1769885107492,0.0383599,2345.1,2342.5,0.2831375]
[1769885107696,0.0383599,2345.1,2341.4,0.0383599]
[1769885107697,0.0383599,2344.1,2342.2,4.2687612]
[1769885107892,0.03431801,2344.5,2339.3,13.4069]
[1769885107893,0.0383599,2341.7,2340.3,0.17089489]
[1769885108093,0.0383599,2341.7,2339.2,4.27485532]
[1769885108094,0.04271861,2341.0,2339.4,4.27450935]
[1769885108414,0.04271861,2341.0,2337.5,2.17722762]
[1769885108415,0.04271861,2340.9,2338.0,4.27712486]
[1769885108593,0.04271861,2340.4,2338.0,4.27712486]
[1769885108794,0.04271861,2340.8,2337.8,1.06938146]
[1769885108795,0.48484503,2341.3,2337.8,1.06938146]
[1769885109030,1.06840735,2341.7,2337.8,1.06938146]
[1769885109031,0.04271861,2340.7,2337.8,1.0064537]
[1769885109230,0.04271861,2339.7,2337.8,1.0064537]
[1769885109434,0.04271861,2339.7,2337.7,4.27752587]
[1769885109637,0.04271861,2339.1,2337.8,1.06938146]
[1769885109792,0.04271861,2339.5,2337.8,1.06938146]
[1769885109793,0.0008,2339.7,2337.8,1.06938146]
[1769885109995,0.0008,2339.7,2337.9,0.53469073]
[1769885110326,4.27138162,2341.2,2338.8,0.0008]
[1769885110632,0.04703367,2338.9,2337.7,4.27757126]
[1769885110793,0.04703367,2338.9,2334.3,0.04703367]
[1769885110794,0.04703367,2335.1,2334.2,2.60998487]
[1769885110996,0.04703367,2334.8,2334.3,0.26099849]
[1769885111191,0.04703367,2334.8,2333.9,4.28393951]
[1769885111192,0.00444377,2334.5,2333.9,4.28393951]
[1769885111426,0.05140177,2335.5,2334.0,1.07112253]
[1769885111629,0.05140177,2335.7,2334.8,0.15864908]
[1769885111837,0.05140177,2336.3,2334.1,0.5355062]
[1769885112005,0.05140177,2333.5,2332.2,1.07194923]
[1769885112339,0.05140177,2333.5,2330.0,13.56875746]
[1769885112340,0.05997515,2331.6,2330.8,2.16153667]
[1769885112496,0.05997515,2332.3,2330.3,4.29055648]
[1769885112497,0.05997515,2331.2,2331.1,0.3598509]
[1769885112691,2.14601615,2338.8,2329.8,1.54]
[1769885112692,0.05997515,2332.1,2331.6,13.68870776]
[1769885112897,0.05997515,2334.9,2331.7,0.82957459]
[1769885113135,0.06428663,2335.2,2333.1,0.2399006]
[1769885113421,0.06428663,2335.2,2331.8,1.43983321]
[1769885113422,0.06428663,2334.6,2331.8,1.43983321]
[1769885113602,0.06428663,2334.5,2331.8,1.43983321]
[1769885113804,0.06428663,2333.8,2331.8,1.43983321]
[1769885114014,0.06428663,2333.7,2330.5,2.20117669]
[1769885114214,0.0008,2335.1,2329.8,1.60428663]
[1769885114215,0.06428663,2338.1,2334.1,13.56875746]
[1769885114396,0.06428663,2338.6,2336.1,13.56875746]
[1769885114597,0.06428663,2338.7,2336.6,0.18432]
[1769885114598,0.35985089,2338.7,2336.6,0.18432]
[1769885114796,0.35985089,2338.7,2336.2,1.42116238]
[1769885114797,0.06428663,2339.3,2336.2,1.35687575]
[1769885115013,0.06428663,2337.0,2334.2,2.17569125]
[1769885115313,0.06428663,2338.2,2334.1,1.07107664]
[1769885115314,0.05561735,2334.9,2334.3,0.32467679]
[1769885115502,0.05561735,2333.9,2330.8,2.14844879]
[1769885115719,0.05561735,2333.9,2330.4,13.62437481]
[1769885115720,0.05561735,2332.7,2330.2,2.12809788]
[1769885115921,0.05561735,2330.2,2329.9,1.07299499]
[1769885116104,0.05561735,2330.6,2329.9,1.07299499]
[1769885116105,0.05561735,2331.8,2329.9,1.07299499]
[1769885116313,0.05561735,2332.2,2329.9,1.07299499]
[1769885116314,0.05561735,2332.6,2329.9,2.12420227]
[1769885116602,0.0008,2333.5,2329.8,4.29197996]
[1769885116803,0.05561735,2332.8,2329.9,0.85847599]
[1769885117018,0.05561735,2333.3,2329.9,0.85847599]
[1769885117019,0.05561735,2332.6,2329.9,0.85847599]
[1769885117330,0.06005104,2331.1,2330.0,1.87192134]
[1769885117531,0.06005104,2331.1,2329.9,0.85847599]
[1769885117532,0.06005104,2331.1,2329.6,4.29197996]
[1769885117533,0.06005104,2329.1,2328.2,4.29509997]
[1769885117696,0.06005104,2329.1,2326.2,1.541]
[1769885117697,0.06005104,2328.2,2327.1,0.17194169]
[1769885117897,0.06005104,2328.2,2325.3,2.18393293]
[1769885117898,0.06005104,2325.9,2325.1,4.52137322]
[1769885118099,0.06449116,2327.9,2327.7,0.0008]